bitfinex/quotes_BTCUSD_20240731
["timestamp","ask_amount","ask_price","bid_price","bid_amount"]
[1722440123864,0.03203497,66578.0,66577.0,1.86236972]
[1722440124060,0.03203497,66578.0,66577.0,1.34696572]
[1722440124260,0.08807,66578.0,66577.0,1.33796572]
[1722440125508,0.00847,66578.0,66577.0,1.34396572]
[1722440126085,0.00847,66578.0,66577.0,1.78106972]
[1722440126287,0.00847,66578.0,66577.0,1.79106972]
[1722440126399,0.00847,66578.0,66577.0,1.80006972]
[1722440126603,0.00847,66578.0,66577.0,1.81206972]
[1722440126802,0.00847,66578.0,66577.0,1.77706972]
[1722440127007,0.00847,66578.0,66577.0,1.81106972]
[1722440127228,0.00847,66578.0,66577.0,1.82506972]
[1722440127457,0.00847,66578.0,66577.0,1.91591178]
[1722440127669,0.03203454,66578.0,66577.0,1.91591178]
[1722440127870,0.03203454,66578.0,66577.0,2.23631578]
[1722440128270,0.03203454,66578.0,66577.0,2.23631208]
[1722440128508,0.00847,66578.0,66577.0,2.23831208]
[1722440129046,0.00847,66578.0,66577.0,2.22431208]
[1722440129242,0.00847,66578.0,66577.0,2.25231208]
[1722440129676,0.00847,66584.0,66583.0,0.032]
[1722440129864,0.00847,66584.0,66583.0,1.14205408]
[1722440130151,0.00847,66584.0,66583.0,2.14318208]
[1722440130352,0.00847,66584.0,66583.0,2.44355808]
[1722440130534,0.00847,66584.0,66583.0,2.74393408]
[1722440131135,0.00847,66584.0,66583.0,2.90263408]
[1722440131376,0.0005,66589.0,66588.0,1.683947]
[1722440131572,0.0005,66589.0,66588.0,2.51947741]
[1722440131813,0.0005,66589.0,66588.0,2.52885397]
[1722440132820,0.0005,66589.0,66588.0,2.54285397]
[1722440134338,0.0005,66589.0,66588.0,2.41801561]
[1722440134536,0.0005,66589.0,66588.0,2.54282833]
[1722440135445,0.02406058,66589.0,66588.0,2.54282833]
[1722440135639,0.0005,66589.0,66588.0,2.54282833]
[1722440136230,0.00133,66589.0,66588.0,2.54282833]
[1722440136507,0.00133,66589.0,66588.0,2.5657521]
[1722440136709,0.00133,66589.0,66588.0,2.19181177]
[1722440137294,0.00133,66589.0,66588.0,2.17781177]
[1722440137486,0.00133,66589.0,66588.0,2.1870501]
[1722440137712,0.00133,66589.0,66588.0,2.20105]
[1722440138549,0.00133,66589.0,66588.0,2.17905]
[1722440138755,0.00133,66589.0,66588.0,1.781496]
[1722440138886,0.00133,66589.0,66588.0,1.65668338]
[1722440139106,0.02489081,66589.0,66588.0,1.65668338]
[1722440139511,0.00133,66589.0,66588.0,1.65668338]
[1722440139708,0.0028842,66589.0,66588.0,1.35632938]
[1722440140055,0.00133,66589.0,66588.0,0.94705161]
[1722440140465,0.19273714,66589.0,66588.0,0.49714589]
[1722440140697,0.19273714,66589.0,66588.0,0.79749989]
[1722440140866,0.14783,66589.0,66588.0,0.48314589]
[1722440141107,0.21663343,66589.0,66588.0,0.78349989]
[1722440141309,0.14783,66589.0,66588.0,0.78349989]
[1722440141509,0.14934912,66589.0,66588.0,0.48314589]
[1722440141714,0.14934912,66589.0,66588.0,0.18279189]
[1722440141921,0.23921866,66589.0,66588.0,0.03261489]
[1722440142122,0.14934912,66589.0,66588.0,0.03261489]
[1722440142326,0.26168604,66589.0,66588.0,0.19279189]
[1722440142527,0.26016692,66589.0,66588.0,0.49314589]
[1722440142698,0.26016692,66589.0,66588.0,0.02861489]
[1722440142904,0.26016692,66589.0,66588.0,0.16879189]
[1722440143112,0.23773464,66589.0,66588.0,0.17479189]
[1722440143307,0.14783,66589.0,66588.0,0.18779189]
[1722440144072,0.14783,66589.0,66588.0,0.17479189]
[1722440144292,0.26024133,66589.0,66588.0,0.02461489]
[1722440144489,0.26024133,66589.0,66588.0,0.03661489]
[1722440144722,0.26024133,66589.0,66588.0,0.18679189]
[1722440144918,0.26024133,66589.0,66588.0,0.48714589]
[1722440145117,0.26024133,66589.0,66588.0,0.18679189]
[1722440145327,0.26024133,66589.0,66588.0,0.03661489]
[1722440145519,0.14783,66589.0,66588.0,0.03661489]
[1722440145745,0.1493842,66589.0,66588.0,0.03661489]
[1722440145904,0.14783,66589.0,66588.0,0.18679189]
[1722440146104,0.14783,66589.0,66588.0,0.03661489]
[1722440146403,0.14783,66589.0,66588.0,0.18679189]
[1722440146628,0.14783,66589.0,66588.0,0.03661489]
[1722440147046,0.17139447,66589.0,66588.0,0.03661489]
[1722440147248,0.17139447,66589.0,66588.0,0.18679189]
[1722440147663,0.62191747,66589.0,66588.0,0.03661489]
[1722440147816,0.47174347,66589.0,66588.0,0.03661489]
[1722440148043,0.63128183,66589.0,66588.0,0.03661489]
[1722440148278,0.76621312,66589.0,66588.0,0.018]
[1722440148749,0.46586412,66589.0,66588.0,0.018]
[1722440149698,0.46586412,66589.0,66588.0,0.18733419]
[1722440149699,0.17139447,66589.0,66588.0,0.18733419]
[1722440149972,0.17139447,66589.0,66588.0,0.03715719]
[1722440150194,0.17139447,66589.0,66588.0,0.18733419]
[1722440150803,0.17139447,66589.0,66588.0,0.03715719]
[1722440151158,0.17220092,66589.0,66588.0,0.03715719]
[1722440151371,0.17139447,66589.0,66588.0,0.03715719]
[1722440151775,0.45739821,66589.0,66588.0,0.03715719]
[1722440152008,0.45739821,66589.0,66588.0,0.018]
[1722440152228,0.30633885,66589.0,66588.0,0.018]
[1722440152665,0.30633885,66589.0,66588.0,0.03716741]
[1722440152837,0.45651285,66589.0,66588.0,0.018]
[1722440153046,0.45651285,66589.0,66588.0,0.03716741]
[1722440153266,0.45651285,66589.0,66588.0,0.03717158]
[1722440153475,0.45654278,66589.0,66588.0,0.03717158]
[1722440154086,0.30636878,66589.0,66588.0,0.018]
[1722440154300,0.30636878,66589.0,66588.0,0.03717193]
[1722440154507,0.17139447,66589.0,66588.0,0.03717193]
[1722440155150,0.32156847,66589.0,66588.0,0.03717193]
[1722440155440,0.30736862,66589.0,66588.0,0.018]
[1722440155895,0.30736862,66589.0,66588.0,0.03783336]
[1722440156096,0.30736862,66589.0,66588.0,0.018]
[1722440156447,0.15719462,66589.0,66588.0,0.03783336]
[1722440156896,0.28279219,66589.0,66588.0,0.03783336]
[1722440157493,0.28279219,66589.0,66588.0,0.18801036]
[1722440157897,0.28279219,66589.0,66588.0,0.03783336]
[1722440158167,0.14783,66589.0,66588.0,0.03783336]
[1722440158357,0.58314119,66589.0,66588.0,0.03783336]
[1722440158678,0.43296619,66589.0,66588.0,0.018]
[1722440158889,0.33093346,66589.0,66588.0,0.018]
[1722440159230,0.18075946,66589.0,66588.0,0.018]
[1722440159637,0.33093346,66589.0,66588.0,0.018]
[1722440159863,0.62191769,66589.0,66588.0,0.018]
[1722440160061,0.33093364,66589.0,66588.0,0.018]
[1722440160267,0.18075964,66589.0,66588.0,0.018]
[1722440160556,0.63128264,66589.0,66588.0,0.018]
[1722440161510,0.18075964,66589.0,66588.0,0.018]
[1722440162349,0.33093364,66589.0,66588.0,0.02639501]
[1722440162568,0.33293364,66589.0,66588.0,0.02139501]
[1722440162779,0.18275964,66589.0,66588.0,0.02139501]
[1722440162942,0.33193364,66589.0,66588.0,0.02139501]
[1722440163209,0.33193364,66589.0,66588.0,0.001]
[1722440163417,0.33293364,66589.0,66584.0,0.150186]
[1722440163605,0.14427816,66588.0,66583.0,0.300374]
[1722440163885,0.4614829,66589.0,66583.0,0.300374]
[1722440164086,0.14427799,66588.0,66584.0,0.150185]
[1722440164257,0.13491321,66588.0,66584.0,0.150185]
[1722440164447,0.00936483,66587.0,66585.0,0.300367]
[1722440164670,0.00936483,66587.0,66578.0,0.300399]
[1722440164671,0.2456079,66589.0,66587.0,0.150178]
[1722440164875,0.00936474,66588.0,66585.0,0.150183]
[1722440165727,0.00936474,66588.0,66581.0,0.300385]
[1722440165728,0.01136474,66588.0,66581.0,0.300385]
[1722440165930,0.09192595,66588.0,66587.0,0.515137]
[1722440166131,0.08992595,66588.0,66587.0,1.26540472]
[1722440166346,0.00233,66589.0,66588.0,0.150177]
[1722440166535,0.00233,66589.0,66588.0,0.450531]
[1722440166743,0.00133,66589.0,66588.0,0.750885]
[1722440166940,0.00133,66589.0,66588.0,0.90043672]
[1722440167140,0.00133,66589.0,66588.0,1.29979072]
[1722440167920,0.00233,66589.0,66588.0,1.29979072]
[1722440168386,0.00233,66589.0,66588.0,1.22379072]
[1722440168704,0.06977329,66589.0,66588.0,1.22779072]
[1722440168909,0.04729219,66589.0,66588.0,0.754885]
[1722440169107,0.00233,66589.0,66588.0,0.750885]
[1722440169391,0.00133,66589.0,66588.0,0.761885]
[1722440169545,0.12409686,66589.0,66588.0,0.761885]
[1722440169748,0.00233,66589.0,66588.0,0.761885]
[1722440170156,0.00133,66589.0,66588.0,0.750885]
[1722440170376,0.06877465,66589.0,66588.0,0.764885]
[1722440171197,0.0106936,66589.0,66588.0,0.014]
[1722440171364,0.32149466,66589.0,66588.0,0.014]
[1722440171563,0.75672715,66589.0,66588.0,0.014]
[1722440171863,0.28387709,66589.0,66588.0,0.014]
[1722440172176,0.22267709,66589.0,66588.0,0.17454871]
[1722440172376,0.22267709,66589.0,66586.0,0.15018]
[1722440172377,0.07843,66589.0,66586.0,0.15018]
[1722440172582,0.07843,66589.0,66588.0,0.02438214]
[1722440172797,0.08879455,66589.0,66588.0,0.454531]
[1722440172996,0.08879455,66589.0,66588.0,0.47491314]
[1722440173531,0.12310775,66589.0,66588.0,0.77126714]
[1722440173890,0.03525943,66589.0,66588.0,0.77126714]
[1722440174079,0.14766669,66589.0,66588.0,0.77126714]
[1722440174217,0.03425943,66589.0,66588.0,0.77126714]
[1722440174424,0.14666669,66589.0,66588.0,0.77126714]
[1722440175318,0.14666669,66589.0,66588.0,0.77526714]
[1722440175738,0.14766805,66589.0,66588.0,0.77526714]
[1722440175882,0.03525876,66589.0,66588.0,0.77526714]
[1722440176082,0.03525876,66589.0,66588.0,1.07562114]
[1722440176263,0.01169388,66589.0,66588.0,0.77526714]
[1722440176473,0.12410317,66589.0,66588.0,0.77526714]
[1722440177098,0.01169388,66589.0,66588.0,0.77526714]
[1722440177629,0.01169388,66589.0,66588.0,0.02438214]
[1722440177630,0.236632,66589.0,66588.0,0.02438214]
[1722440177843,1.35240652,66589.0,66588.0,0.02438214]
[1722440177980,1.55258199,66589.0,66588.0,0.004]
[1722440178184,1.40082945,66589.0,66588.0,0.004]
[1722440178386,1.39082945,66589.0,66588.0,0.004]
[1722440178959,0.45055,66585.0,66584.0,0.000913]
[1722440179171,0.54011577,66585.0,66584.0,0.000913]
[1722440179380,0.6919482,66585.0,66584.0,0.000913]
[1722440179586,0.54011577,66585.0,66584.0,0.000913]
[1722440179784,0.23974877,66585.0,66584.0,0.000913]
[1722440179989,0.08956577,66585.0,66584.0,0.000913]
[1722440180192,0.54011577,66585.0,66584.0,0.000913]
[1722440181372,0.08956577,66585.0,66584.0,0.000913]
[1722440181585,0.00936577,66585.0,66584.0,0.451471]
[1722440181799,0.00936577,66585.0,66584.0,0.47184127]
[1722440182000,0.00433,66589.0,66584.0,0.02128327]
[1722440182203,0.17574885,66585.0,66584.0,0.02228327]
[1722440182432,0.62348072,66585.0,66584.0,0.001913]
[1722440182635,1.01760346,66585.0,66584.0,0.001913]
[1722440182954,1.01760346,66585.0,66584.0,0.000913]
[1722440182955,1.05421606,66585.0,66584.0,0.000913]
[1722440183165,1.05621606,66585.0,66584.0,0.001913]
[1722440183357,1.35658306,66585.0,66584.0,0.001913]
[1722440183593,1.35458306,66585.0,66584.0,0.000913]
[1722440183796,1.35458306,66585.0,66584.0,0.100913]
[1722440183998,1.05421606,66585.0,66584.0,0.100913]
[1722440184166,0.96046032,66585.0,66584.0,0.100913]
[1722440185030,0.96246032,66585.0,66584.0,0.101913]
[1722440185234,0.96282188,66585.0,66584.0,0.101913]
[1722440185644,0.92684942,66585.0,66584.0,0.102913]
[1722440186839,1.26607637,66585.0,66584.0,0.102913]
[1722440187062,1.43445477,66585.0,66584.0,0.102913]
[1722440187410,1.63260557,66585.0,66584.0,0.102913]
[1722440187610,1.63258689,66585.0,66584.0,0.102913]
[1722440187836,1.40088892,66585.0,66584.0,0.102913]
[1722440188037,1.17273692,66585.0,66584.0,0.102913]
[1722440188518,0.2004348,66585.0,66584.0,0.102913]
[1722440188731,0.08976714,66585.0,66584.0,0.102913]
[1722440189196,0.08976714,66585.0,66584.0,0.12339246]
[1722440189629,0.08976714,66585.0,66584.0,0.12239246]
[1722440189630,0.08776714,66585.0,66584.0,0.12239246]
[1722440189848,0.01236714,66585.0,66584.0,0.42276446]
[1722440190055,0.01236714,66585.0,66584.0,0.93882246]
[1722440190056,0.01136714,66585.0,66584.0,0.93882246]
[1722440190262,0.002,66585.0,66584.0,0.93882246]
[1722440190462,0.13707205,66585.0,66584.0,0.93882246]
[1722440190784,0.002,66585.0,66584.0,0.93882246]
[1722440191181,0.002,66585.0,66584.0,0.93782246]
[1722440191619,0.004,66585.0,66584.0,0.27257846]
[1722440191821,0.154183,66585.0,66584.0,0.12239246]
[1722440192039,0.01136471,66585.0,66584.0,0.12139246]
[1722440192486,0.01136471,66585.0,66584.0,0.12239246]
[1722440192691,0.01136471,66585.0,66584.0,0.27257846]
[1722440192839,0.01236471,66585.0,66584.0,0.63805046]
[1722440193022,0.002,66585.0,66584.0,0.93742246]
[1722440193229,0.13507598,66585.0,66584.0,0.93742246]
[1722440193457,0.002,66585.0,66584.0,1.23779446]
[1722440193659,0.13507598,66586.0,66585.0,0.750917]
[1722440193819,0.13507598,66586.0,66585.0,1.051284]
[1722440194136,0.13507598,66586.0,66585.0,1.07173523]
[1722440194478,0.15864184,66586.0,66585.0,0.77136823]
[1722440194679,0.15864205,66586.0,66585.0,0.77136823]
[1722440195443,0.16064205,66586.0,66585.0,0.77236823]
[1722440195643,0.02556586,66586.0,66585.0,0.77236823]
[1722440196073,0.02756586,66586.0,66585.0,0.47200123]
[1722440196274,0.10716586,66586.0,66585.0,0.02145123]
[1722440196476,0.11653073,66586.0,66585.0,0.02145123]
[1722440196682,0.11453073,66586.0,66585.0,0.02045123]
[1722440196877,0.00936487,66586.0,66585.0,0.02045123]
[1722440197075,0.00936487,66586.0,66585.0,0.17563423]
[1722440197277,0.15196072,66587.0,66585.0,0.17563423]
[1722440197476,0.00936487,66588.0,66585.0,0.02045123]
[1722440197477,0.00936487,66586.0,66585.0,0.02045123]
[1722440197681,0.15196072,66588.0,66585.0,0.02045123]
[1722440197946,0.15196072,66588.0,66585.0,0.02145123]
[1722440197947,0.002,66586.0,66585.0,0.02145123]
[1722440198124,0.01136502,66586.0,66585.0,0.02145123]
[1722440198557,0.00936502,66586.0,66585.0,0.02045123]
[1722440198767,0.002,66586.0,66585.0,0.02145123]
[1722440198932,0.01336502,66586.0,66585.0,0.02145123]
[1722440199138,0.08473822,66586.0,66585.0,0.001]
[1722440199519,0.01336502,66586.0,66585.0,0.02141662]
[1722440199751,0.16534326,66586.0,66585.0,0.02141662]
[1722440199979,0.1889098,66586.0,66585.0,0.02141662]
[1722440200652,0.1889098,66586.0,66585.0,0.001]
[1722440201059,0.1889098,66586.0,66585.0,0.02142266]
[1722440201060,0.01336552,66586.0,66585.0,0.02142266]
[1722440201463,0.01336552,66586.0,66585.0,0.001]
[1722440201677,0.01336552,66586.0,66585.0,0.02142266]
[1722440202070,0.04038217,66586.0,66585.0,0.02142266]
[1722440202572,0.49092617,66586.0,66585.0,0.02142266]
[1722440202775,0.93258917,66586.0,66585.0,0.02142266]
[1722440202978,1.28160896,66586.0,66585.0,0.001]
[1722440203191,1.60197196,66586.0,66585.0,0.001]
[1722440203416,1.61660896,66586.0,66585.0,0.001]
[1722440203888,1.91697196,66586.0,66585.0,0.001]
[1722440204093,1.64020229,66586.0,66585.0,0.001]
[1722440205123,1.61463337,66586.0,66585.0,0.001]
[1722440205525,1.39963337,66586.0,66585.0,0.002]
[1722440205880,1.40263337,66586.0,66585.0,0.001]
[1722440206081,1.41163337,66586.0,66585.0,0.002]
[1722440206286,1.93352073,66586.0,66585.0,0.002]
[1722440206448,1.92663337,66586.0,66585.0,0.002]
[1722440206646,0.150217,66570.0,66553.0,0.4771]
[1722440206863,0.97740674,66570.0,66553.0,0.4771]
[1722440207250,1.3327737,66570.0,66553.0,0.4771]
[1722440207452,1.38052252,66570.0,66553.0,0.4771]
[1722440207826,1.37052252,66570.0,66553.0,0.4771]
[1722440208043,1.07008752,66570.0,66554.0,0.150252]
[1722440208374,1.03170828,66570.0,66553.0,0.627355]
[1722440208548,1.19347734,66570.0,66553.0,0.627355]
[1722440209353,1.06870828,66570.0,66569.0,0.001913]
[1722440209571,1.05870828,66570.0,66569.0,0.001913]
[1722440209906,0.36158658,66570.0,66569.0,0.001913]
[1722440210106,0.66202158,66570.0,66569.0,0.001913]
[1722440210301,0.68559618,66570.0,66569.0,0.001913]
[1722440210533,0.21136854,66570.0,66569.0,0.001913]
[1722440210738,0.17118953,66570.0,66569.0,0.001913]
[1722440211011,0.03636854,66570.0,66569.0,0.02254996]
[1722440211393,0.03636854,66570.0,66569.0,0.001913]
[1722440211802,0.89021607,66570.0,66569.0,0.001913]
[1722440212004,1.03371607,66570.0,66569.0,0.001913]
[1722440212215,1.05729207,66570.0,66569.0,0.001913]
[1722440212779,1.06729207,66570.0,66569.0,0.001913]
[1722440213381,1.03434753,66570.0,66569.0,0.001913]
[1722440213615,0.95895284,66570.0,66569.0,0.001913]
[1722440214239,0.96895284,66570.0,66569.0,0.001913]
[1722440214434,0.95895284,66570.0,66569.0,0.001913]
[1722440215438,0.56442143,66570.0,66569.0,0.001913]
[1722440215778,0.69919339,66570.0,66569.0,0.001913]
[1722440215971,0.39875839,66570.0,66569.0,0.001913]
[1722440216154,0.32135839,66570.0,66569.0,0.001913]
[1722440216358,0.21016169,66570.0,66569.0,0.001913]
[1722440216553,0.62389151,66570.0,66569.0,0.001913]
[1722440216919,0.61452208,66570.0,66569.0,0.001913]
[1722440217092,0.17323855,66570.0,66569.0,0.001913]
[1722440217307,0.32345555,66570.0,66569.0,0.001913]
[1722440217685,0.69865467,66570.0,66569.0,0.001913]
[1722440218109,0.67507941,66570.0,66569.0,0.001913]
[1722440218867,0.97551441,66570.0,66569.0,0.001913]
[1722440219287,1.12713675,66570.0,66569.0,0.001913]
[1722440219921,0.96614594,66570.0,66569.0,0.001913]
[1722440220116,0.52625945,66570.0,66569.0,0.001913]
[1722440220314,0.18658595,66570.0,66569.0,0.001913]
[1722440220544,0.48702095,66570.0,66569.0,0.001913]
[1722440220857,0.78745595,66570.0,66569.0,0.001913]
[1722440221062,0.93907051,66570.0,66569.0,0.001913]
[1722440221310,0.66221144,66570.0,66569.0,0.001913]
[1722440221569,0.05994488,66570.0,66569.0,0.001913]
[1722440221772,0.05994488,66570.0,66569.0,0.067813]
[1722440222183,0.19472162,66570.0,66569.0,0.067813]
[1722440222407,0.027,66570.0,66569.0,0.23913711]
[1722440223220,0.13478693,66574.0,66569.0,0.23813711]
[1722440223436,0.011,66570.0,66569.0,0.08791711]
[1722440223641,0.011,66570.0,66569.0,0.08891711]
[1722440223642,0.16115483,66570.0,66569.0,0.08891711]
[1722440223844,0.16115483,66570.0,66569.0,0.02301711]
[1722440224019,0.16115483,66570.0,66569.0,0.001913]
[1722440224020,0.86221902,66570.0,66569.0,0.001913]
[1722440224263,1.29609929,66570.0,66569.0,0.001913]
[1722440224460,0.99566429,66570.0,66569.0,0.001913]
[1722440224623,1.00566429,66570.0,66569.0,0.001913]
[1722440225022,0.98466429,66570.0,66569.0,0.001913]
[1722440225224,0.99466429,66570.0,66569.0,0.001913]
[1722440225431,1.02178389,66570.0,66569.0,0.002913]
[1722440225645,1.04535987,66570.0,66569.0,0.002913]
[1722440225853,1.04535987,66570.0,66569.0,0.001913]
[1722440226049,0.99887237,66570.0,66569.0,0.001913]
[1722440226318,1.01924143,66570.0,66569.0,0.002913]
[1722440226520,1.05652367,66570.0,66569.0,0.002913]
[1722440226929,1.03294769,66570.0,66569.0,0.002913]
[1722440227146,1.04294769,66570.0,66569.0,0.002913]
[1722440227479,1.04177494,66570.0,66569.0,0.002913]
[1722440227637,1.34220994,66570.0,66569.0,0.002913]
[1722440227839,1.05177494,66570.0,66569.0,0.002913]
[1722440228734,1.35220994,66570.0,66569.0,0.002913]
[1722440228939,1.35171759,66570.0,66569.0,0.002913]
[1722440229084,1.05128259,66570.0,66569.0,0.002913]
[1722440229288,1.35171759,66570.0,66569.0,0.002913]
[1722440229526,1.30555864,66570.0,66569.0,0.002913]
[1722440229727,1.35172309,66570.0,66569.0,0.002913]
[1722440229901,1.49422309,66570.0,66569.0,0.002913]
[1722440230100,1.51422309,66570.0,66569.0,0.002913]
[1722440230305,1.61422309,66570.0,66569.0,0.002913]
[1722440230572,1.9382353,66570.0,66569.0,0.002913]
[1722440230779,1.6378003,66570.0,66569.0,0.002913]
[1722440231607,1.61422309,66570.0,66569.0,0.002913]
[1722440231851,1.67445709,66570.0,66569.0,0.002913]
[1722440232263,1.65445709,66570.0,66569.0,0.002913]
[1722440232485,1.61422309,66570.0,66569.0,0.002913]
[1722440232671,1.62829264,66570.0,66569.0,0.002913]
[1722440232867,1.67499419,66570.0,66569.0,0.002913]
[1722440233672,1.61476019,66570.0,66569.0,0.002913]
[1722440234897,0.0725288,66570.0,66569.0,0.002913]
[1722440235130,0.02637014,66570.0,66569.0,0.216933]
[1722440235294,0.02637014,66570.0,66569.0,0.23814865]
[1722440235494,0.13862335,66570.0,66569.0,0.08792865]
[1722440235696,0.02637014,66570.0,66569.0,0.08792865]
[1722440235852,0.0263677,66570.0,66569.0,0.08792865]
[1722440236054,0.0153677,66570.0,66569.0,0.08692865]
[1722440236600,0.02937606,66570.0,66569.0,0.10857594]
[1722440236824,0.03437606,66570.0,66569.0,0.10957594]
[1722440237031,0.0143677,66570.0,66569.0,0.10857594]
[1722440237528,0.0183677,66570.0,66569.0,0.10857594]
[1722440237709,0.0093677,66570.0,66569.0,0.10757594]
[1722440237922,0.01,66570.0,66569.0,0.08692865]
[1722440238141,0.15414467,66570.0,66569.0,0.08692865]
[1722440238352,0.15414467,66570.0,66569.0,0.10853208]
[1722440238516,0.0093677,66570.0,66569.0,0.08592865]
[1722440238721,0.03794133,66570.0,66569.0,0.10853208]
[1722440239180,0.03894144,66570.0,66569.0,0.10853208]
[1722440239302,0.03294144,66570.0,66569.0,0.10753208]
[1722440239496,0.04194144,66570.0,66569.0,0.10853208]
[1722440239698,0.04594144,66570.0,66569.0,0.63999208]
[1722440239897,0.01836781,66570.0,66569.0,0.94043208]
[1722440240099,0.09886723,66570.0,66569.0,0.94043208]
[1722440240296,0.01,66570.0,66569.0,0.94043208]
[1722440240507,0.09886723,66570.0,66569.0,0.94043208]
[1722440240831,0.08986723,66570.0,66569.0,0.94343208]
[1722440241242,0.07241253,66570.0,66569.0,1.24487208]
[1722440241489,0.005,66570.0,66569.0,1.54531208]
[1722440241839,0.04494168,66578.0,66576.0,0.0814]
[1722440241969,0.04494168,66580.0,66579.0,0.444095]
[1722440242175,0.06823938,66584.0,66583.0,0.150188]
[1722440242378,0.06825327,66584.0,66583.0,0.91620948]
[1722440242583,0.06823467,66584.0,66583.0,1.21658548]
[1722440242791,0.02439656,66584.0,66583.0,0.91620948]
[1722440243190,0.10852585,66584.0,66583.0,0.16526948]
[1722440243440,0.08495929,66584.0,66583.0,0.31545748]
[1722440243643,0.22077806,66584.0,66583.0,0.32145748]
[1722440243846,0.08595929,66584.0,66583.0,0.32145748]
[1722440244024,0.08495929,66584.0,66583.0,0.31545748]
[1722440244221,0.08495929,66584.0,66583.0,0.61583348]
[1722440244459,0.07559412,66584.0,66583.0,0.61583348]
[1722440244667,0.00083,66584.0,66583.0,0.91620948]
[1722440244874,0.00083,66584.0,66583.0,0.91470948]
[1722440245072,0.00483,66584.0,66583.0,0.91470948]
[1722440245329,0.11818479,66584.0,66583.0,0.92070948]
[1722440245535,0.11818479,66584.0,66583.0,1.21508548]
[1722440245536,0.00083,66584.0,66583.0,1.21508548]
[1722440245737,0.06824554,66584.0,66583.0,1.21508548]
[1722440245947,0.0457605,66584.0,66583.0,1.21808548]
[1722440246352,0.02439589,66584.0,66583.0,1.21508548]
[1722440246557,0.02839589,66584.0,66583.0,1.21508548]
[1722440246764,0.02939589,66584.0,66583.0,1.22108548]
[1722440246967,0.07432613,66584.0,66583.0,1.22108548]
[1722440247173,0.07432613,66584.0,66583.0,0.16376948]
[1722440247174,0.11828356,66584.0,66583.0,0.16376948]
[1722440247378,0.14075548,66584.0,66583.0,0.16376948]
[1722440247581,0.05906962,66584.0,66583.0,0.02156948]
[1722440247754,0.03550373,66584.0,66581.0,0.150191]
[1722440247959,0.00483,66584.0,66583.0,0.450564]
[1722440248160,0.00483,66584.0,66582.0,0.02142175]
[1722440248361,0.00483,66584.0,66583.0,0.17160733]
[1722440248537,0.00483,66584.0,66583.0,0.17560733]
[1722440248736,0.00083,66584.0,66583.0,0.17160733]
[1722440249090,0.00283,66584.0,66583.0,0.17160733]
[1722440249292,0.0240018,66584.0,66583.0,0.17160733]
[1722440249524,0.00183,66584.0,66583.0,0.47198333]
[1722440249932,0.00583,66584.0,66583.0,0.47198333]
[1722440250723,0.00583,66584.0,66583.0,0.17160733]
[1722440251158,0.02939716,66584.0,66583.0,0.02141933]
[1722440251506,0.00583,66584.0,66583.0,0.150188]
[1722440251845,0.00483,66584.0,66583.0,0.4719996]
[1722440252050,0.00083,66584.0,66583.0,0.4719996]
[1722440252446,0.00483,66584.0,66583.0,0.4719996]
[1722440252699,0.00483,66584.0,66583.0,0.9118756]
[1722440252900,0.00483,66584.0,66583.0,1.2122516]
[1722440252901,0.00083,66584.0,66583.0,1.2122516]
[1722440253409,0.00083,66584.0,66583.0,0.9118756]
[1722440253613,0.00083,66584.0,66583.0,1.2122516]
[1722440254174,0.02839608,66584.0,66583.0,1.2122516]
[1722440254705,0.02439608,66584.0,66583.0,0.9118756]
[1722440254917,0.02439608,66584.0,66583.0,0.0841356]
[1722440255117,0.170418,66584.0,66583.0,0.0214356]
[1722440255290,0.18481868,66584.0,66583.0,0.0214356]
[1722440255498,0.150189,66583.0,66572.0,0.150212]
[1722440255730,0.06734768,66573.0,66572.0,0.150212]
[1722440255868,0.08979568,66574.0,66571.0,0.5391]
[1722440256250,0.06734836,66572.0,66571.0,1.290177]
[1722440256364,0.08979568,66573.0,66572.0,0.450639]
[1722440256595,0.08980005,66573.0,66572.0,0.450639]
[1722440256842,0.06734985,66574.0,66573.0,0.450633]
[1722440257046,0.08980005,66575.0,66574.0,0.150208]
[1722440257245,0.08980005,66575.0,66574.0,0.450625]
[1722440257617,0.11224461,66576.0,66574.0,0.300417]
[1722440257820,0.11224461,66576.0,66575.0,0.450619]
[1722440258033,0.11224461,66577.0,66575.0,0.300413]
[1722440258241,0.11224461,66577.0,66576.0,0.150202]
[1722440258453,0.20945765,66582.0,66577.0,0.150201]
[1722440258614,0.00936644,66581.0,66577.0,0.150201]
[1722440259061,0.03293566,66581.0,66577.0,0.150201]
[1722440259272,0.02356922,66581.0,66577.0,0.150201]
[1722440259718,0.0093664,66580.0,66577.0,0.003]
[1722440259928,0.02356922,66581.0,66577.0,0.150201]
[1722440260285,0.02356922,66581.0,66577.0,0.154201]
[1722440260499,0.00936632,66580.0,66577.0,0.004]
[1722440260930,0.00936632,66580.0,66577.0,0.154201]
[1722440261131,0.02356922,66581.0,66577.0,0.154201]
[1722440261403,0.00936632,66580.0,66577.0,0.154201]
[1722440262003,0.00936632,66580.0,66577.0,0.004]
[1722440262348,0.00936632,66579.0,66577.0,0.004]
[1722440262605,0.00936632,66578.0,66577.0,0.004]
[1722440262761,0.01036632,66581.0,66577.0,0.004]
[1722440263109,0.00936632,66580.0,66577.0,0.004]
[1722440263714,0.00936632,66580.0,66578.0,0.02145645]
[1722440264166,0.00936632,66580.0,66577.0,0.004]
[1722440264370,0.13471583,66582.0,66579.0,0.02145403]
[1722440264582,0.21884636,66581.0,66578.0,0.02145645]
[1722440264777,0.20947995,66581.0,66580.0,0.0214516]
[1722440264978,0.21884638,66581.0,66580.0,0.0214516]
[1722440265214,0.24241578,66581.0,66577.0,0.004]
[1722440265388,0.150202,66577.0,66567.0,0.230123]
[1722440265593,0.21338384,66576.0,66567.0,0.150224]
[1722440265789,0.00936643,66575.0,66572.0,0.02151947]
[1722440266018,0.14408226,66575.0,66569.0,0.17234765]
[1722440266227,0.00936643,66574.0,66570.0,0.150217]
[1722440266365,0.00936643,66574.0,66570.0,0.02153086]
[1722440266558,0.14408226,66574.0,66570.0,0.02153086]
[1722440266761,0.00936643,66573.0,66572.0,0.001]
[1722440267164,0.00936643,66573.0,66569.0,0.17234665]
[1722440267365,0.13475013,66574.0,66570.0,0.02153086]
[1722440267601,0.00936743,66573.0,66572.0,0.294912]
[1722440268137,0.00936743,66575.0,66572.0,0.16623045]
[1722440268426,0.00936743,66574.0,66572.0,0.08543045]
[1722440268645,0.00936743,66573.0,66572.0,0.08543045]
[1722440268972,0.01036743,66573.0,66572.0,0.08543045]